lending/lending_fUSD_20240603
["ID","MTS","AMOUNT","RATE_DAILY","PERIOD"]
[328439195,1717389045931,-500.0,0.00028767,4]
[328439196,1717389045940,-500.0,0.00028767,4]
[328439197,1717389045949,-1934.31,0.00028767,4]
[328439198,1717389045958,-1176.86,0.00028767,4]
[328439199,1717389045967,-500.0,0.00028767,4]
[328439200,1717389045978,-2118.35,0.00028767,4]
[328439201,1717389045989,-759.25,0.00028767,4]
[328439202,1717389045998,-912.58,0.00028767,4]
[328439203,1717389046007,-500.0,0.00028767,4]
[328439204,1717389046016,-500.0,0.00028767,4]
[328439205,1717389046026,-500.0,0.00028767,4]
[328439206,1717389046035,-1405.62,0.00028767,4]
[328439207,1717389046044,-500.0,0.00028767,4]
[328439208,1717389046054,-1421.66,0.00028767,4]
[328439209,1717389046063,-500.0,0.00028767,4]
[328439210,1717389046073,-500.0,0.00028767,4]
[328439211,1717389046083,-566.0,0.00028767,4]
[328439212,1717389046092,-3946.44,0.00028767,4]
[328439213,1717389046101,-530.15,0.00028767,4]
[328439214,1717389046111,-1447.14,0.00028767,4]
[328439215,1717389046121,-818.94,0.00028767,4]
[328439216,1717389046130,-12791.31,0.00028767,4]
[328439217,1717389046141,-733.27,0.00028767,4]
[328439218,1717389046150,-500.0,0.00028767,4]
[328439219,1717389046160,-500.0,0.00028767,4]
[328439220,1717389046169,-768.52,0.00028767,4]
[328439221,1717389046178,-500.0,0.00028767,4]
[328439222,1717389046187,-500.0,0.00028767,4]
[328439223,1717389046197,-500.0,0.00028767,4]
[328439224,1717389046206,-500.0,0.00028767,4]
[328439225,1717389046215,-494.5065673,0.00028769,2]
[328439226,1717389046224,-3165.78087402,0.0002877,2]
[328439227,1717389046234,-278.17516002,0.0002877,2]
[328439228,1717389046244,-155.32984811,0.0002877,2]
[328439229,1717389046253,-196.07264254,0.0002877,2]
[328439230,1717389046263,-5779.04735754,0.0002877,2]
[328439231,1717389046272,-1898.91513286,0.0002877,2]
[328439232,1717389046281,-158.41417273,0.0002877,2]
[328439233,1717389046292,-453.44068385,0.00028771,2]
[328439234,1717389046301,-7863.85734097,0.00028771,2]
[328439235,1717389046310,-5302.45034608,0.00028771,2]
[328439236,1717389046319,-155.3528282,0.00028771,2]
[328439237,1717389046330,-155.0,0.00028771,2]
[328439238,1717389046339,-200.16781833,0.00028771,2]
[328439239,1717389046349,-325.92527891,0.00028771,2]
[328439240,1717389046358,-2198.52038463,0.00028771,2]
[328439241,1717389046368,-155.42766885,0.00028771,2]
[328439242,1717389046377,-159.22578089,0.00028771,2]
[328439243,1717389046387,-209.69102974,0.00028771,2]
[328439244,1717389046397,-500.0,0.00028771,4]
[328439245,1717389046407,-500.0,0.00028771,4]
[328439246,1717389046415,-500.0,0.00028771,4]
[328439247,1717389046425,-500.0,0.00028771,4]
[328439248,1717389046438,-500.0,0.00028771,4]
[328439249,1717389046447,-500.0,0.00028771,4]
[328439250,1717389046456,-500.0,0.00028771,4]
[328439251,1717389046465,-500.0,0.00028771,4]
[328439252,1717389046474,-500.0,0.00028771,4]
[328439253,1717389046485,-500.0,0.00028771,4]
[328439254,1717389046494,-500.0,0.00028771,4]
[328439255,1717389046503,-500.0,0.00028771,4]
[328439256,1717389046512,-500.0,0.00028771,4]
[328439257,1717389046523,-500.0,0.00028771,4]
[328439258,1717389046532,-500.0,0.00028771,4]
[328439259,1717389046541,-2915.06,0.00028771,4]
[328439260,1717389046550,-500.0,0.00028771,4]
[328439261,1717389046559,-516.63132926,0.00028771,4]
[328439262,1717389046568,-982.37,0.00028771,4]
[328439263,1717389046577,-1544.48,0.00028771,4]
[328439264,1717389046587,-355.19562097,0.00028771,4]
[328439265,1717389046596,-644.6,0.00028771,4]
[328439266,1717389046607,-547.39,0.00028771,4]
[328439267,1717389046616,-500.0,0.00028771,4]
[328439268,1717389046627,-1062.74,0.00028771,4]
[328439269,1717389046637,-1179.69,0.00028771,4]
[328439270,1717389046648,-500.0,0.00028771,4]
[328439271,1717389046659,-785.78,0.00028771,4]
[328439272,1717389046669,-500.0,0.00028771,4]
[328439273,1717389046680,-272.7807147,0.00028771,4]
[328439274,1717389046691,-500.0,0.00028771,4]
[328439275,1717389046702,-500.0,0.00028771,4]
[328439276,1717389046712,-500.0,0.00028771,4]
[328439277,1717389046721,-1221.0,0.00028771,4]
[328439278,1717389046730,-362.76779327,0.00028771,4]
[328439279,1717389046739,-500.0,0.00028771,2]
[328439280,1717389046749,-748.54,0.00028771,4]
[328439281,1717389046758,-500.0,0.00028771,4]
[328439282,1717389046768,-500.0,0.00028771,4]
[328439283,1717389046777,-500.0,0.00028771,4]
[328439284,1717389046786,-500.0,0.00028771,4]
[328439285,1717389046795,-322.58524978,0.00028771,4]
[328439286,1717389046803,-801.18,0.00028771,4]
[328439287,1717389046812,-500.0,0.00028771,4]
[328439288,1717389046821,-576.19,0.00028771,4]
[328439289,1717389046832,-533.10468211,0.00028771,4]
[328439290,1717389046841,-1096.48,0.00028771,4]
[328439291,1717389046850,-525.18,0.00028771,4]
[328439292,1717389046859,-500.0,0.00028771,4]
[328439293,1717389046868,-552.79940238,0.00028771,4]
[328439294,1717389046877,-500.0,0.00028771,4]
[328439295,1717389046886,-1379.61,0.00028771,4]
[328439296,1717389046895,-735.02,0.00028771,4]
[328439297,1717389046904,-500.0,0.00028771,4]
[328439298,1717389046913,-500.0,0.00028771,4]
[328439299,1717389046922,-500.0,0.00028771,4]
[328439300,1717389046931,-500.0,0.00028771,4]
[328439301,1717389046940,-345610.00805486,0.00028772,11]
[328439302,1717389046950,-200.0,0.00028772,2]
[328439303,1717389046959,-174.1841681,0.00028772,2]
[328439304,1717389046968,-413.50680479,0.00028772,2]
[328439305,1717389046977,-621674.71841563,0.00028772,2]
[328439306,1717389046986,-436.26115508,0.00028772,2]
[328439307,1717389046995,-156.46541149,0.00028772,4]
[328439308,1717389047004,-500.0,0.00028772,4]
[328439309,1717389047013,-500.0,0.00028772,4]
[328439310,1717389047023,-500.0,0.00028772,4]
[328439311,1717389047032,-500.0,0.00028772,4]
[328439312,1717389047041,-489.01620281,0.00028772,4]
[328439313,1717389047050,-310.67312519,0.00028772,4]
[328439314,1717389047059,-523.29803456,0.00028772,4]
[328439315,1717389047068,-508.37045958,0.00028772,4]
[328439316,1717389047077,-498.01650704,0.00028772,4]
[328439317,1717389047086,-500.0,0.00028772,4]
[328439318,1717389047095,-500.0,0.00028772,4]
[328439319,1717389047104,-500.0,0.00028772,4]
[328439320,1717389047113,-500.0,0.00028772,4]
[328439321,1717389047122,-500.0,0.00028772,4]
[328439322,1717389047131,-500.0,0.00028772,4]
[328439323,1717389047140,-500.0,0.00028772,4]
[328439324,1717389047150,-500.0,0.00028772,4]
[328439325,1717389047159,-500.0,0.00028772,4]
[328439326,1717389047168,-500.0,0.00028772,4]
[328439327,1717389047176,-437.44569112,0.00028772,4]
[328439328,1717389047186,-500.0,0.00028772,4]
[328439329,1717389047194,-500.0,0.00028772,4]
[328439330,1717389047203,-500.0,0.00028772,4]
[328439331,1717389047213,-500.0,0.00028772,4]
[328439332,1717389047222,-500.0,0.00028772,4]
[328439333,1717389047231,-500.0,0.00028772,4]
[328439334,1717389047239,-500.0,0.00028772,4]
[328439335,1717389047249,-500.0,0.00028772,4]
[328439336,1717389047258,-500.0,0.00028772,4]
[328439337,1717389047267,-500.0,0.00028772,4]
[328439338,1717389047276,-500.0,0.00028772,4]
[328439339,1717389047285,-500.0,0.00028772,4]
[328439340,1717389047294,-500.0,0.00028772,4]
[328439341,1717389047303,-500.0,0.00028772,4]
[328439342,1717389047312,-500.0,0.00028772,4]
[328439343,1717389047321,-500.0,0.00028772,4]
[328439344,1717389047331,-541.29,0.00028772,4]
[328439345,1717389047340,-151.0,0.00028772,7]
[328439346,1717389047349,-500.0,0.00028772,4]
[328439347,1717389047359,-316.42525585,0.00028772,4]
[328439348,1717389047367,-407.97566011,0.00028772,4]
[328439349,1717389047376,-500.0,0.00028772,4]
[328439350,1717389047385,-500.0,0.00028772,4]
[328439351,1717389047395,-500.0,0.00028772,4]
[328439352,1717389047403,-500.0,0.00028772,4]
[328439353,1717389047412,-500.0,0.00028772,4]
[328439354,1717389047421,-500.0,0.00028772,4]
[328439355,1717389047430,-500.0,0.00028772,4]
[328439356,1717389047443,-500.0,0.00028772,4]
[328439357,1717389047453,-500.0,0.00028772,4]
[328439358,1717389047462,-812.33,0.00028772,4]
[328439359,1717389047471,-500.0,0.00028772,4]
[328439360,1717389047481,-500.0,0.00028772,4]
[328439361,1717389047490,-500.0,0.00028772,4]
[328439362,1717389047499,-425.86342349,0.00028772,4]
[328439363,1717389047509,-500.0,0.00028772,4]
[328439364,1717389047520,-800.0,0.00028849,2]
[328439365,1717389047530,-12910.6966677,0.00028852,2]
[328439366,1717389047538,-151.15371935,0.00028867,2]
[328439367,1717389047547,-500.0,0.0002887,4]
[328439368,1717389047556,-13860.93441176,0.00028907,2]
[328439369,1717389047565,-2004.73823716,0.00028967,2]
[328439370,1717389047574,-8457.62489903,0.00028967,2]
[328439371,1717389047584,-1066.12569338,0.00028967,2]
[328439372,1717389047593,-176.92387325,0.00028967,2]
[328439373,1717389047602,-1251.30968724,0.00028967,2]
[328439374,1717389047611,-156.18506225,0.00028967,2]
[328439375,1717389047621,-3014.3584163,0.00028967,2]
[328439376,1717389047630,-155.28106626,0.00028967,2]
[328439377,1717389047639,-155.18285874,0.00028967,2]
[328439378,1717389047648,-2747.64406103,0.00028968,2]
[328439379,1717389047657,-532.60630929,0.00028968,2]
[328439380,1717389047666,-500.0,0.0002897,4]
[328439381,1717389047675,-500.0,0.0002897,4]
[328439382,1717389047684,-500.0,0.0002897,4]
[328439383,1717389047693,-199.579919,0.00028971,7]
[328439384,1717389047702,-150.0,0.00028999,2]
[328439385,1717389047712,-500.0,0.00028999,4]
[328439386,1717389047721,-500000.0,0.00029,2]
[328439387,1717389047730,-1350.0,0.00029,2]
[328439388,1717389047739,-151.0,0.00029,7]
[328439389,1717389047749,-232.732742,0.00029,7]
[328439390,1717389047758,-500.0,0.00029041,4]
[328439391,1717389047766,-150.0,0.00029041,4]
[328439392,1717389047776,-500.0,0.00029041,4]
[328439393,1717389047785,-500.0,0.00029041,4]
[328439394,1717389047794,-500.0,0.00029041,4]
[328439395,1717389047804,-500.0,0.00029041,4]
[328439396,1717389047813,-500.0,0.00029041,4]
[328439397,1717389047822,-578.40352672,0.00029041,4]
[328439398,1717389047831,-500.0,0.00029041,4]
[328439399,1717389047840,-500.0,0.00029041,4]
[328439400,1717389047849,-500.0,0.00029041,4]
[328439401,1717389047859,-500.0,0.00029041,4]
[328439402,1717389047870,-1568.09,0.00029041,4]
[328439403,1717389047879,-648.13533694,0.00029041,4]
[328439404,1717389047888,-4687.56,0.00029041,4]
[328439405,1717389047899,-1548.33,0.00029041,4]
[328439406,1717389047909,-4104.15,0.00029041,4]
[328439407,1717389047919,-1535.91,0.00029041,4]
[328439408,1717389047928,-500.0,0.00029041,4]
[328439409,1717389047937,-500.0,0.00029041,4]
[328439410,1717389047947,-910.08,0.00029041,4]
[328439411,1717389047956,-696.56,0.00029041,4]
[328439412,1717389047965,-500.0,0.00029041,4]
[328439413,1717389047975,-1151.42,0.00029041,4]
[328439414,1717389047984,-1173.66,0.00029041,4]
[328439415,1717389047993,-5921.43,0.00029041,4]
[328439416,1717389048003,-539.44,0.00029041,4]
[328439417,1717389048012,-848.91,0.00029041,4]
[328439418,1717389048021,-1286.49,0.00029041,4]
[328439419,1717389048031,-500.0,0.00029041,4]
[328439420,1717389048040,-500.0,0.00029041,4]
[328439421,1717389048049,-559.62,0.00029041,4]
[328439422,1717389048059,-632.25,0.00029041,4]
[328439423,1717389048067,-500.0,0.00029041,4]
[328439424,1717389048077,-500.0,0.00029041,4]
[328439425,1717389048089,-565.7,0.00029041,4]
[328439426,1717389048097,-2118.74,0.00029041,4]
[328439427,1717389048107,-909.21,0.00029041,4]
[328439428,1717389048116,-651.84,0.00029041,4]
[328439429,1717389048125,-537.35,0.00029041,4]
[328439430,1717389048135,-500.0,0.00029041,4]
[328439431,1717389048144,-982.23,0.00029041,4]
[328439432,1717389048153,-4493.09,0.00029041,4]
[328439433,1717389048164,-500.0,0.00029041,4]
[328439434,1717389048174,-500.0,0.00029041,4]
[328439435,1717389048183,-719.21,0.00029041,4]
[328439436,1717389048192,-793.36,0.00029041,4]
[328439437,1717389048202,-500.0,0.00029041,4]
[328439438,1717389048211,-633.56,0.00029041,4]
[328439439,1717389048221,-500.0,0.00029041,4]
[328439440,1717389048231,-1664.07,0.00029041,4]
[328439441,1717389048241,-576.29,0.00029041,4]
[328439442,1717389048251,-500.0,0.00029041,4]
[328439443,1717389048261,-1096.54,0.00029041,4]
[328439444,1717389048270,-732.02,0.00029041,4]
[328439445,1717389048279,-583.29,0.00029041,4]
[328439446,1717389048288,-500.0,0.00029041,4]
[328439447,1717389048298,-574.86,0.00029041,4]
[328439448,1717389048307,-1896.28,0.00029041,4]
[328439449,1717389048317,-1037.87,0.00029041,4]
[328439450,1717389048327,-848.97,0.00029041,4]
[328439451,1717389048339,-500.0,0.00029041,4]
[328439452,1717389048348,-994.65,0.00029041,4]
[328439453,1717389048357,-500.0,0.00029041,4]
[328439454,1717389048367,-696.39,0.00029041,4]
[328439455,1717389048376,-500.0,0.00029041,4]
[328439456,1717389048386,-855.5,0.00029041,4]
[328439457,1717389048395,-1445.97,0.00029041,4]
[328439458,1717389048405,-500.0,0.00029041,4]
[328439459,1717389048415,-500.0,0.00029041,4]
[328439460,1717389048424,-509.19,0.00029041,4]
[328439461,1717389048435,-206.81950881,0.00029041,4]
[328439462,1717389048448,-822.77,0.00029041,4]
[328439463,1717389048457,-500.0,0.00029041,4]
[328439464,1717389048467,-500.0,0.00029041,4]
[328439465,1717389048480,-815.25,0.00029041,4]
[328439466,1717389048490,-500.0,0.00029041,4]
[328439467,1717389048500,-500.0,0.00029041,4]
[328439468,1717389048510,-559.21,0.00029041,4]
[328439469,1717389048520,-500.0,0.00029041,4]
[328439470,1717389048530,-500.0,0.00029041,4]
[328439471,1717389048539,-500.0,0.00029041,4]
[328439472,1717389048549,-1934.31,0.00029041,4]
[328439473,1717389048558,-500.0,0.00029041,4]
[328439474,1717389048567,-1176.86,0.00029041,4]
[328439475,1717389048577,-2118.35,0.00029041,4]
[328439476,1717389048589,-759.25,0.00029041,4]
[328439477,1717389048599,-912.58,0.00029041,4]
[328439478,1717389048608,-500.0,0.00029041,4]
[328439479,1717389048618,-646.3031683,0.00029041,4]
[328439480,1717389048628,-500.0,0.00029041,4]
[328439481,1717389048637,-1405.62,0.00029041,4]
[328439482,1717389048647,-629.53740908,0.00029041,4]
[328439483,1717389048656,-1421.66,0.00029041,4]
[328439484,1717389048665,-500.0,0.00029041,4]
[328439485,1717389048675,-500.0,0.00029041,4]
[328439486,1717389048684,-566.0,0.00029041,4]
[328439487,1717389048695,-3946.44,0.00029041,4]
[328439488,1717389048704,-530.15,0.00029041,4]
[328439489,1717389048715,-1447.14,0.00029041,4]
[328439490,1717389048725,-818.94,0.00029041,4]
[328439491,1717389048734,-12791.31,0.00029041,4]
[328439492,1717389048743,-733.27,0.00029041,4]
[328439493,1717389048753,-500.0,0.00029041,4]
[328439494,1717389048763,-500.0,0.00029041,4]
[328439495,1717389048774,-768.52,0.00029041,4]
[328439496,1717389048785,-500.0,0.00029041,4]
[328439497,1717389048795,-500.0,0.00029041,4]
[328439498,1717389048804,-500.0,0.00029041,4]
[328439499,1717389048815,-500.0,0.00029041,4]
[328439500,1717389048824,-223.721536,0.00029041,14]
[328439501,1717389048835,-500.0,0.00029045,4]
[328439502,1717389048844,-353.0125585,0.00029045,4]
[328439503,1717389048853,-500.0,0.00029045,4]
[328439504,1717389048864,-500.0,0.00029045,4]
[328439505,1717389048875,-500.0,0.00029045,4]
[328439506,1717389048885,-500.0,0.00029045,4]
[328439507,1717389048895,-500.0,0.00029045,4]
[328439508,1717389048904,-500.0,0.00029045,4]
[328439509,1717389048914,-500.0,0.00029045,4]
[328439510,1717389048924,-311.32827824,0.00029045,4]
[328439511,1717389048934,-518.7930738,0.00029045,4]
[328439512,1717389048943,-2915.06,0.00029045,4]
[328439513,1717389048955,-500.0,0.00029045,4]
[328439514,1717389048966,-982.37,0.00029045,4]
[328439515,1717389048976,-1544.48,0.00029045,4]
[328439516,1717389048986,-644.6,0.00029045,4]
[328439517,1717389048995,-547.39,0.00029045,4]
[328439518,1717389049005,-500.0,0.00029045,4]
[328439519,1717389049014,-1062.74,0.00029045,4]
[328439520,1717389049023,-1179.69,0.00029045,4]
[328439521,1717389049033,-500.0,0.00029045,4]
[328439522,1717389049042,-785.78,0.00029045,4]
[328439523,1717389049052,-500.0,0.00029045,4]
[328439524,1717389049062,-500.0,0.00029045,4]
[328439525,1717389049072,-500.0,0.00029045,4]
[328439526,1717389049082,-1221.0,0.00029045,4]
[328439527,1717389049091,-500.0,0.00029045,2]
[328439528,1717389049101,-748.54,0.00029045,4]
[328439529,1717389049110,-267.4,0.00029045,4]
[328439530,1717389049120,-500.0,0.00029045,4]
[328439531,1717389049130,-500.0,0.00029045,4]
[328439532,1717389049140,-500.0,0.00029045,4]
[328439533,1717389049149,-801.18,0.00029045,4]
[328439534,1717389049159,-500.0,0.00029045,4]
[328439535,1717389049169,-576.19,0.00029045,4]
[328439536,1717389049179,-1096.48,0.00029045,4]
[328439537,1717389049188,-525.18,0.00029045,4]
[328439538,1717389049198,-500.0,0.00029045,4]
[328439539,1717389049207,-500.0,0.00029045,4]
[328439540,1717389049217,-1379.61,0.00029045,4]
[328439541,1717389049227,-735.02,0.00029045,4]
[328439542,1717389049236,-500.0,0.00029045,4]
[328439543,1717389049246,-500.0,0.00029045,4]
[328439544,1717389049255,-500.0,0.00029045,4]
[328439545,1717389049265,-500.0,0.00029045,4]
[328439546,1717389049274,-508.86644627,0.00029046,4]
[328439547,1717389049283,-500.0,0.00029046,4]
[328439548,1717389049293,-500.0,0.00029046,4]
[328439549,1717389049303,-500.0,0.00029046,4]
[328439550,1717389049312,-500.0,0.00029046,4]
[328439551,1717389049322,-500.0,0.00029046,4]
[328439552,1717389049333,-500.0,0.00029046,4]
[328439553,1717389049342,-500.0,0.00029046,4]
[328439554,1717389049352,-500.0,0.00029046,4]
[328439555,1717389049361,-500.0,0.00029046,4]
[328439556,1717389049371,-500.0,0.00029046,4]
[328439557,1717389049381,-500.0,0.00029046,4]
[328439558,1717389049391,-500.0,0.00029046,4]
[328439559,1717389049400,-500.0,0.00029046,4]
[328439560,1717389049409,-528.46905488,0.00029046,4]
[328439561,1717389049419,-500.0,0.00029046,4]
[328439562,1717389049430,-500.0,0.00029046,4]
[328439563,1717389049443,-500.0,0.00029046,4]
[328439564,1717389049453,-500.0,0.00029046,4]
[328439565,1717389049463,-500.0,0.00029046,4]
[328439566,1717389049472,-500.0,0.00029046,4]
[328439567,1717389049482,-500.0,0.00029046,4]
[328439568,1717389049492,-500.0,0.00029046,4]
[328439569,1717389049502,-500.0,0.00029046,4]
[328439570,1717389049512,-500.0,0.00029046,4]
[328439571,1717389049524,-500.0,0.00029046,4]
[328439572,1717389049535,-507.15955292,0.00029046,4]
[328439573,1717389049544,-500.0,0.00029046,4]
[328439574,1717389049554,-541.29,0.00029046,4]
[328439575,1717389049564,-500.0,0.00029046,4]
[328439576,1717389049574,-500.0,0.00029046,4]
[328439577,1717389049583,-500.0,0.00029046,4]
[328439578,1717389049593,-567.99114614,0.00029046,4]
[328439579,1717389049603,-500.0,0.00029046,4]
[328439580,1717389049612,-500.0,0.00029046,4]
[328439581,1717389049622,-500.0,0.00029046,4]
[328439582,1717389049631,-500.0,0.00029046,4]
[328439583,1717389049642,-500.0,0.00029046,4]
[328439584,1717389049652,-812.33,0.00029046,4]
[328439585,1717389049662,-311.15767532,0.00029046,4]
[328439586,1717389049672,-500.0,0.00029046,4]
[328439587,1717389049681,-500.0,0.00029046,4]
[328439588,1717389049692,-500.0,0.00029046,4]
[328439589,1717389049701,-601.111706,0.00029074,2]
[328439590,1717389049711,-721.375399,0.00029074,2]
[328439591,1717389049722,-318.108728,0.00029074,2]
[328439592,1717389049731,-150.0,0.00029136,2]
[328439593,1717389049741,-429.52,0.00029178,2]
[328439594,1717389049751,-160.88,0.00029178,2]
[328439595,1717389049760,-150.0,0.00029178,2]
[328439596,1717389049769,-151.77,0.00029178,2]
[328439597,1717389049779,-156.68,0.00029178,2]
[328439598,1717389049790,-344.32,0.00029178,2]
[328439599,1717389049800,-724.92,0.00029178,2]
[328439600,1717389049810,-152.42,0.00029178,2]
[328439601,1717389049820,-150.0,0.00029178,2]
[328439602,1717389049832,-150.0,0.00029178,2]
[328439603,1717389049842,-150.0,0.00029178,2]
[328439604,1717389049852,-1007.49,0.00029178,2]
[328439605,1717389049862,-150.0,0.00029178,2]
[328439606,1717389049871,-525.57,0.00029178,2]
[328439607,1717389049881,-150.0,0.00029178,2]
[328439608,1717389049891,-150.0,0.00029178,2]
[328439609,1717389049902,-525.57,0.00029178,2]
[328439610,1717389049913,-150.0,0.00029178,2]
[328439611,1717389049924,-150.0,0.00029178,2]
[328439612,1717389049935,-150.0,0.00029273,2]
[328439613,1717389049944,-500.0,0.00029315,4]
[328439614,1717389049954,-150.0,0.00029315,4]
[328439615,1717389049963,-500.0,0.00029315,4]
[328439616,1717389049973,-500.0,0.00029315,4]
[328439617,1717389049982,-500.0,0.00029315,4]
[328439618,1717389049992,-500.0,0.00029315,4]
[328439619,1717389050002,-500.0,0.00029315,4]
[328439620,1717389050011,-500.0,0.00029315,4]
[328439621,1717389050020,-500.0,0.00029315,4]
[328439622,1717389050030,-500.0,0.00029315,4]
[328439623,1717389050040,-500.0,0.00029315,4]
[328439624,1717389050049,-1568.09,0.00029315,4]
[328439625,1717389050059,-4687.56,0.00029315,4]
[328439626,1717389050068,-1548.33,0.00029315,4]
[328439627,1717389050078,-4104.15,0.00029315,4]
[328439628,1717389050088,-1535.91,0.00029315,4]
[328439629,1717389050097,-500.0,0.00029315,4]
[328439630,1717389050107,-500.0,0.00029315,4]
[328439631,1717389050116,-910.08,0.00029315,4]
[328439632,1717389050127,-696.56,0.00029315,4]
[328439633,1717389050137,-500.0,0.00029315,4]
[328439634,1717389050147,-1151.42,0.00029315,4]
[328439635,1717389050157,-1173.66,0.00029315,4]
[328439636,1717389050166,-5921.43,0.00029315,4]
[328439637,1717389050176,-539.44,0.00029315,4]
[328439638,1717389050186,-848.91,0.00029315,4]
[328439639,1717389050195,-1286.49,0.00029315,4]
[328439640,1717389050205,-500.0,0.00029315,4]
[328439641,1717389050214,-239.05494992,0.00029315,4]
[328439642,1717389050224,-559.62,0.00029315,4]
[328439643,1717389050234,-632.25,0.00029315,4]
[328439644,1717389050243,-500.0,0.00029315,4]
[328439645,1717389050253,-500.0,0.00029315,4]
[328439646,1717389050262,-565.7,0.00029315,4]
[328439647,1717389050454,-2118.74,0.00029315,4]
[328439648,1717389050472,-909.21,0.00029315,4]
[328439649,1717389050483,-651.84,0.00029315,4]
[328439650,1717389050493,-537.35,0.00029315,4]
[328439651,1717389050502,-500.0,0.00029315,4]
[328439652,1717389050514,-982.23,0.00029315,4]
[328439653,1717389050523,-4493.09,0.00029315,4]
[328439654,1717389050533,-500.0,0.00029315,4]
[328439655,1717389050542,-500.0,0.00029315,4]
[328439656,1717389050552,-719.21,0.00029315,4]
[328439657,1717389050561,-793.36,0.00029315,4]
[328439658,1717389050571,-500.0,0.00029315,4]
[328439659,1717389050580,-633.56,0.00029315,4]
[328439660,1717389050592,-500.0,0.00029315,4]
[328439661,1717389050602,-1664.07,0.00029315,4]
[328439662,1717389050612,-576.29,0.00029315,4]
[328439663,1717389050622,-500.0,0.00029315,4]
[328439664,1717389050632,-1096.54,0.00029315,4]
[328439665,1717389050642,-732.02,0.00029315,4]
[328439666,1717389050651,-583.29,0.00029315,4]
[328439667,1717389050661,-500.0,0.00029315,4]
[328439668,1717389050671,-574.86,0.00029315,4]
[328439669,1717389050680,-1896.28,0.00029315,4]
[328439670,1717389050690,-1037.87,0.00029315,4]
[328439671,1717389050699,-848.97,0.00029315,4]
[328439672,1717389050708,-500.0,0.00029315,4]
[328439673,1717389050718,-994.65,0.00029315,4]
[328439674,1717389050728,-500.0,0.00029315,4]
[328439675,1717389050737,-696.39,0.00029315,4]
[328439676,1717389050747,-500.0,0.00029315,4]
[328439677,1717389050756,-855.5,0.00029315,4]
[328439678,1717389050765,-1445.97,0.00029315,4]
[328439679,1717389050775,-500.0,0.00029315,4]
[328439680,1717389050784,-503.8,0.00029315,4]
[328439681,1717389050793,-509.19,0.00029315,4]
[328439682,1717389050803,-822.77,0.00029315,4]
[328439683,1717389050813,-500.0,0.00029315,4]
[328439684,1717389050823,-500.0,0.00029315,4]
[328439685,1717389050832,-815.25,0.00029315,4]
[328439686,1717389050843,-500.0,0.00029315,4]
[328439687,1717389050852,-500.0,0.00029315,4]
[328439688,1717389050861,-559.21,0.00029315,4]
[328439689,1717389050871,-500.0,0.00029315,4]
[328439690,1717389050880,-500.0,0.00029315,4]
[328439691,1717389050889,-500.0,0.00029315,4]
[328439692,1717389050899,-1934.31,0.00029315,4]
[328439693,1717389050908,-1176.86,0.00029315,4]
[328439694,1717389050918,-500.0,0.00029315,4]